[Event "Champions Chess Tour Finals 2024"]
[Date "2024.12.20"]
[White "Firouzja, Alireza"]
[Black "Nepomniachtchi, Ian"]
[WhiteElo "2756"]
[BlackElo "2758"]
[Round "1.3"]
[Result "1/2-1/2"]
[TimeControl "600+2"]

1. Nf3 {[%clk 0:10:03]} d5 {[%clk 0:10:03]} 2. b3 {[%clk 0:10:04]} Bf5 {[%clk
0:10:04]} 3. Bb2 {[%clk 0:10:05]} e6 {[%clk 0:10:05]} 4. g3 {[%clk 0:10:05]} Nf6
{[%clk 0:10:06]} 5. Bg2 {[%clk 0:10:06]} h6 {[%clk 0:10:07]} 6. O-O {[%clk
0:10:05]} Be7 {[%clk 0:10:09]} 7. d3 {[%clk 0:10:06]} O-O {[%clk 0:10:09]} 8.
Nbd2 {[%clk 0:10:07]} a5 {[%clk 0:10:10]} 9. a3 {[%clk 0:09:56]} Bh7 {[%clk
0:10:10]} 10. Re1 {[%clk 0:09:55]} c6 {[%clk 0:10:11]} 11. e4 {[%clk 0:09:51]}
Re8 {[%clk 0:10:13]} 12. Qe2 {[%clk 0:09:35]} Bf8 {[%clk 0:10:14]} 13. h3 {[%clk
0:09:23]} Qc7 {[%clk 0:10:10]} 14. e5 {[%clk 0:08:06]} Nfd7 {[%clk 0:10:08]} 15.
g4 {[%clk 0:08:05]} c5 {[%clk 0:10:01]} 16. g5 {[%clk 0:07:37]} a4 {[%clk
0:09:52]} 17. gxh6 {[%clk 0:07:21]} gxh6 {[%clk 0:09:52]} 18. Nh2 {[%clk
0:06:46]} Nc6 {[%clk 0:09:44]} 19. Ng4 {[%clk 0:06:37]} Nd4 {[%clk 0:09:15]} 20.
Bxd4 {[%clk 0:05:12]} cxd4 {[%clk 0:09:15]} 21. Nf3 {[%clk 0:05:08]} axb3 {[%clk
0:09:16]} 22. cxb3 {[%clk 0:05:09]} Qc3 {[%clk 0:09:17]} 23. Bf1 {[%clk
0:04:23]} Rec8 {[%clk 0:08:08]} 24. Rec1 {[%clk 0:03:42]} Qxb3 {[%clk 0:07:23]}
25. Rab1 {[%clk 0:03:25]} Qa4 {[%clk 0:07:16]} 26. Rxc8 {[%clk 0:02:55]} Rxc8
{[%clk 0:07:17]} 27. Rxb7 {[%clk 0:02:48]} Bg7 {[%clk 0:06:41]} 28. Qd2 {[%clk
0:02:37]} Qc6 {[%clk 0:06:01]} 29. Ra7 {[%clk 0:02:18]} Ra8 {[%clk 0:05:35]} 30.
Nxd4 {[%clk 0:01:58]} Qc8 {[%clk 0:05:37]} 31. Nxh6+ {[%clk 0:01:40]} Bxh6
{[%clk 0:05:34]} 32. Rxa8 {[%clk 0:01:42]} Qxa8 {[%clk 0:05:35]} 33. Qxh6 {[%clk
0:01:43]} Nxe5 {[%clk 0:04:40]} 34. Qg5+ {[%clk 0:01:44]} Ng6 {[%clk 0:04:42]}
35. h4 {[%clk 0:01:44]} Qa4 {[%clk 0:04:14]} 36. Nf3 {[%clk 0:01:13]} Qf4 {[%clk
0:03:10]} 37. Qxf4 {[%clk 0:00:59]} Nxf4 {[%clk 0:03:11]} 38. a4 {[%clk
0:01:01]} Nxd3 {[%clk 0:02:24]} 39. a5 {[%clk 0:01:00]} Nc5 {[%clk 0:02:05]} 40.
a6 {[%clk 0:00:57]} Nxa6 {[%clk 0:02:06]} 41. Bxa6 {[%clk 0:00:59]} Kg7 {[%clk
0:02:07]} 42. Kh2 {[%clk 0:00:54]} f6 {[%clk 0:02:06]} 43. Bb7 {[%clk 0:00:45]}
Kf7 {[%clk 0:01:56]} 44. Kg3 {[%clk 0:00:45]} Ke7 {[%clk 0:01:54]} 45. h5 {[%clk
0:00:39]} Kd6 {[%clk 0:01:52]} 46. h6 {[%clk 0:00:24]} Ke7 {[%clk 0:01:48]} 47.
Nh4 {[%clk 0:00:21]} d4 {[%clk 0:01:43]} 48. f4 {[%clk 0:00:16]} Kf7 {[%clk
0:01:38]} 49. Bf3 {[%clk 0:00:12]} Bc2 {[%clk 0:01:38]} 50. Bg4 {[%clk 0:00:07]}
e5 {[%clk 0:01:31]} 51. f5 {[%clk 0:00:05]} Kg8 {[%clk 0:01:32]} 52. Nf3 {[%clk
0:00:04]} Kh7 {[%clk 0:01:30]} 53. Ne1 {[%clk 0:00:03]} Be4 {[%clk 0:01:30]} 54.
Kh4 {[%clk 0:00:03]} Kxh6 {[%clk 0:01:31]} 55. Nf3 {[%clk 0:00:04]} Bc2 {[%clk
0:01:22]} 56. Kg3 {[%clk 0:00:05]} Be4 {[%clk 0:01:22]} 57. Nd2 {[%clk 0:00:04]}
Bc2 {[%clk 0:01:23]} 58. Nf3 {[%clk 0:00:04]} Be4 {[%clk 0:01:24]} 59. Nd2
{[%clk 0:00:06]} Bc2 {[%clk 0:01:24]} 60. Nf3 {[%clk 0:00:06]} 1/2-1/2

[Variant "Standard"]
[Site "Europe Echecs"]

[Event "Champions Chess Tour Finals 2024"]
[Date "2024.12.20"]
[White "Vachier-Lagrave, Maxime"]
[Black "Carlsen, Magnus"]
[WhiteElo "2763"]
[BlackElo "2838"]
[Round "1.4"]
[Result "1/2-1/2"]
[TimeControl "600+2"]

1. e4 {[%clk 0:10:03]} e5 {[%clk 0:10:03]} 2. Nf3 {[%clk 0:10:04]} Nc6 {[%clk
0:10:04]} 3. Bb5 {[%clk 0:10:05]} a6 {[%clk 0:10:05]} 4. Ba4 {[%clk 0:10:06]}
Nf6 {[%clk 0:10:06]} 5. O-O {[%clk 0:10:07]} Be7 {[%clk 0:10:07]} 6. Re1 {[%clk
0:10:07]} b5 {[%clk 0:10:08]} 7. Bb3 {[%clk 0:10:08]} O-O {[%clk 0:10:07]} 8. a4
{[%clk 0:10:09]} Rb8 {[%clk 0:10:08]} 9. axb5 {[%clk 0:10:08]} axb5 {[%clk
0:10:09]} 10. h3 {[%clk 0:10:04]} d6 {[%clk 0:10:04]} 11. c3 {[%clk 0:10:05]} b4
{[%clk 0:09:59]} 12. d3 {[%clk 0:10:06]} bxc3 {[%clk 0:10:00]} 13. bxc3 {[%clk
0:10:07]} h6 {[%clk 0:09:48]} 14. Nbd2 {[%clk 0:09:57]} Bd7 {[%clk 0:09:29]} 15.
Nf1 {[%clk 0:09:51]} Ra8 {[%clk 0:09:30]} 16. Rb1 {[%clk 0:09:25]} Re8 {[%clk
0:08:40]} 17. g4 {[%clk 0:08:58]} Be6 {[%clk 0:08:23]} 18. Ba4 {[%clk 0:08:27]}
Bd7 {[%clk 0:08:19]} 19. Ne3 {[%clk 0:08:02]} Nd4 {[%clk 0:08:16]} 20. Bxd7
{[%clk 0:08:02]} Nxf3+ {[%clk 0:08:17]} 21. Qxf3 {[%clk 0:08:02]} Nxd7 {[%clk
0:08:17]} 22. Nf5 {[%clk 0:07:54]} Bg5 {[%clk 0:08:18]} 23. Bxg5 {[%clk
0:07:07]} hxg5 {[%clk 0:08:13]} 24. Kg2 {[%clk 0:06:53]} g6 {[%clk 0:07:54]} 25.
Ne3 {[%clk 0:06:54]} Nf8 {[%clk 0:07:50]} 26. Nd5 {[%clk 0:06:33]} Kg7 {[%clk
0:07:49]} 27. Rb7 {[%clk 0:06:33]} Ne6 {[%clk 0:07:49]} 28. Reb1 {[%clk
0:06:33]} Rf8 {[%clk 0:07:21]} 29. Kg1 {[%clk 0:06:20]} Rc8 {[%clk 0:06:09]} 30.
Ra7 {[%clk 0:06:05]} f6 {[%clk 0:05:46]} 31. Rbb7 {[%clk 0:05:50]} Rf7 {[%clk
0:05:47]} 32. Qd1 {[%clk 0:05:25]} Nc5 {[%clk 0:05:28]} 33. Rb1 {[%clk 0:04:59]}
Rb8 {[%clk 0:05:11]} 34. Kh2 {[%clk 0:04:31]} c6 {[%clk 0:04:36]} 35. Rxf7+
{[%clk 0:04:26]} Kxf7 {[%clk 0:04:37]} 36. Ne3 {[%clk 0:04:23]} Rxb1 {[%clk
0:04:16]} 37. Qxb1 {[%clk 0:04:24]} Qc7 {[%clk 0:04:14]} 38. Kg3 {[%clk
0:03:40]} Kg7 {[%clk 0:03:51]} 39. h4 {[%clk 0:03:32]} gxh4+ {[%clk 0:03:51]}
40. Kxh4 {[%clk 0:03:33]} Ne6 {[%clk 0:03:46]} 41. Ng2 {[%clk 0:03:04]} d5
{[%clk 0:03:38]} 42. Kg3 {[%clk 0:03:00]} dxe4 {[%clk 0:03:21]} 43. dxe4 {[%clk
0:03:00]} Qd7 {[%clk 0:03:09]} 44. f3 {[%clk 0:02:46]} Qd2 {[%clk 0:02:59]} 45.
Qb7+ {[%clk 0:02:29]} Kh6 {[%clk 0:02:55]} 46. Qc8 {[%clk 0:02:29]} Nd8 {[%clk
0:02:47]} 47. Qc7 {[%clk 0:02:12]} Ne6 {[%clk 0:02:42]} 48. Qc8 {[%clk 0:01:54]}
Nd8 {[%clk 0:02:42]} 49. c4 {[%clk 0:01:48]} Kg7 {[%clk 0:02:17]} 50. Qc7+
{[%clk 0:01:48]} Kf8 {[%clk 0:02:14]} 51. Nh4 {[%clk 0:01:28]} Qe1+ {[%clk
0:02:13]} 52. Kg2 {[%clk 0:01:26]} Qe2+ {[%clk 0:02:09]} 53. Kg3 {[%clk
0:01:16]} Qe1+ {[%clk 0:02:09]} 54. Kg2 {[%clk 0:01:17]} Qe2+ {[%clk 0:02:08]}
1/2-1/2

[Variant "Standard"]
[Site "Europe Echecs"]

[Event "Champions Chess Tour Finals 2024"]
[Date "2024.12.20"]
[White "Nepomniachtchi, Ian"]
[Black "Firouzja, Alireza"]
[WhiteElo "2758"]
[BlackElo "2756"]
[Round "1.4"]
[Result "1-0"]
[TimeControl "600+2"]

1. e4 {[%clk 0:10:03]} c5 {[%clk 0:10:04]} 2. Nf3 {[%clk 0:10:03]} d6 {[%clk
0:10:05]} 3. d4 {[%clk 0:10:04]} cxd4 {[%clk 0:10:06]} 4. Nxd4 {[%clk 0:10:05]}
Nf6 {[%clk 0:10:07]} 5. Nc3 {[%clk 0:10:06]} a6 {[%clk 0:10:08]} 6. Be2 {[%clk
0:10:07]} e5 {[%clk 0:10:03]} 7. Nb3 {[%clk 0:10:08]} Be7 {[%clk 0:10:03]} 8.
O-O {[%clk 0:10:08]} O-O {[%clk 0:10:04]} 9. Qd3 {[%clk 0:10:09]} Be6 {[%clk
0:09:01]} 10. Rd1 {[%clk 0:10:09]} a5 {[%clk 0:08:34]} 11. Be3 {[%clk 0:09:42]}
Nc6 {[%clk 0:08:19]} 12. a3 {[%clk 0:09:28]} Nd7 {[%clk 0:06:08]} 13. Nd5 {[%clk
0:09:15]} a4 {[%clk 0:05:59]} 14. Nd2 {[%clk 0:09:06]} Bg5 {[%clk 0:04:36]} 15.
Bxg5 {[%clk 0:08:40]} Qxg5 {[%clk 0:04:37]} 16. Nc7 {[%clk 0:08:38]} Nc5 {[%clk
0:02:55]} 17. Qxd6 {[%clk 0:08:37]} Rad8 {[%clk 0:02:31]} 18. Qxc5 {[%clk
0:07:48]} Rxd2 {[%clk 0:02:32]} 19. Rxd2 {[%clk 0:07:39]} Qxd2 {[%clk 0:02:33]}
20. Bf1 {[%clk 0:07:34]} Nd4 {[%clk 0:02:09]} 21. Bd3 {[%clk 0:06:43]} Qg5
{[%clk 0:01:10]} 22. Kh1 {[%clk 0:06:30]} h5 {[%clk 0:01:05]} 23. Rf1 {[%clk
0:06:23]} Qf4 {[%clk 0:00:52]} 24. f3 {[%clk 0:05:47]} h4 {[%clk 0:00:50]} 25.
c3 {[%clk 0:05:48]} h3 {[%clk 0:00:33]} 26. cxd4 {[%clk 0:05:42]} Qd2 {[%clk
0:00:34]} 27. gxh3 {[%clk 0:04:28]} Qxd3 {[%clk 0:00:27]} 28. Rf2 {[%clk
0:03:53]} Bxh3 {[%clk 0:00:24]} 29. Qc2 {[%clk 0:03:52]} Qxd4 {[%clk 0:00:16]}
30. Nd5 {[%clk 0:03:53]} b6 {[%clk 0:00:06]} 31. Rd2 {[%clk 0:03:51]} Qc5 {[%clk
0:00:08]} 32. Qxc5 {[%clk 0:03:46]} bxc5 {[%clk 0:00:09]} 33. Kg1 {[%clk
0:03:46]} Be6 {[%clk 0:00:07]} 34. Nc3 {[%clk 0:03:33]} Ra8 {[%clk 0:00:05]} 35.
Kf2 {[%clk 0:03:29]} g6 {[%clk 0:00:06]} 36. Rd6 {[%clk 0:03:26]} Kg7 {[%clk
0:00:06]} 37. Rc6 {[%clk 0:03:25]} Rb8 {[%clk 0:00:05]} 38. Nxa4 {[%clk
0:03:25]} Bd7 {[%clk 0:00:06]} 39. Rb6 {[%clk 0:03:27]} Rc8 {[%clk 0:00:05]} 40.
Nc3 {[%clk 0:03:27]} Rh8 {[%clk 0:00:06]} 41. Kg3 {[%clk 0:03:25]} Be6 {[%clk
0:00:06]} 42. a4 {[%clk 0:03:23]} Rd8 {[%clk 0:00:05]} 43. a5 {[%clk 0:03:19]}
Ra8 {[%clk 0:00:06]} 44. Rb5 {[%clk 0:03:18]} Rc8 {[%clk 0:00:04]} 45. a6 {[%clk
0:03:17]} Bc4 {[%clk 0:00:03]} 46. Ra5 {[%clk 0:03:18]} f5 {[%clk 0:00:03]} 47.
a7 {[%clk 0:03:18]} 1-0

[Variant "Standard"]
[Site "Europe Echecs"]

[Event "Champions Chess Tour Finals 2024"]
[Date "2024.12.20"]
[White "Carlsen, Magnus"]
[Black "Vachier-Lagrave, Maxime"]
[WhiteElo "2838"]
[BlackElo "2763"]
[Round "1.5"]
[Result "1-0"]
[TimeControl "600+2"]

1. e4 {[%clk 0:10:01]} c5 {[%clk 0:10:03]} 2. c3 {[%clk 0:10:02]} d5 {[%clk
0:10:02]} 3. exd5 {[%clk 0:10:02]} Qxd5 {[%clk 0:10:02]} 4. d4 {[%clk 0:10:03]}
Nf6 {[%clk 0:09:49]} 5. Nf3 {[%clk 0:10:03]} Nc6 {[%clk 0:09:47]} 6. Be2 {[%clk
0:09:48]} e6 {[%clk 0:09:25]} 7. O-O {[%clk 0:09:48]} Be7 {[%clk 0:09:22]} 8. c4
{[%clk 0:09:45]} Qd8 {[%clk 0:09:02]} 9. dxc5 {[%clk 0:09:46]} O-O {[%clk
0:09:02]} 10. Nc3 {[%clk 0:09:41]} Bxc5 {[%clk 0:08:59]} 11. a3 {[%clk 0:09:43]}
a5 {[%clk 0:08:24]} 12. Na4 {[%clk 0:09:12]} Ba7 {[%clk 0:08:00]} 13. Bf4 {[%clk
0:08:37]} Bd7 {[%clk 0:07:46]} 14. Nc3 {[%clk 0:07:06]} Bb8 {[%clk 0:07:26]} 15.
Qc1 {[%clk 0:06:43]} Bxf4 {[%clk 0:06:21]} 16. Qxf4 {[%clk 0:06:44]} Qb8 {[%clk
0:06:19]} 17. Qe3 {[%clk 0:05:07]} a4 {[%clk 0:06:13]} 18. Rad1 {[%clk 0:05:04]}
Ne7 {[%clk 0:06:02]} 19. Bd3 {[%clk 0:04:26]} Bc6 {[%clk 0:05:25]} 20. Ne5
{[%clk 0:04:25]} Ra5 {[%clk 0:05:26]} 21. Rfe1 {[%clk 0:04:00]} h6 {[%clk
0:04:54]} 22. Bc2 {[%clk 0:03:58]} Nf5 {[%clk 0:04:28]} 23. Qe2 {[%clk 0:03:29]}
Qa7 {[%clk 0:04:02]} 24. Bxf5 {[%clk 0:03:14]} exf5 {[%clk 0:04:02]} 25. Nxc6
{[%clk 0:03:12]} bxc6 {[%clk 0:04:03]} 26. h3 {[%clk 0:03:12]} Qc5 {[%clk
0:03:46]} 27. Qe7 {[%clk 0:03:07]} Qxc4 {[%clk 0:02:06]} 28. Rd8 {[%clk
0:02:58]} Nh7 {[%clk 0:02:07]} 29. Red1 {[%clk 0:01:59]} Qe6 {[%clk 0:01:46]}
30. Qxe6 {[%clk 0:01:36]} fxe6 {[%clk 0:01:47]} 31. R8d6 {[%clk 0:01:36]} Rb8
{[%clk 0:01:08]} 32. R1d2 {[%clk 0:01:28]} e5 {[%clk 0:01:05]} 33. Rxc6 {[%clk
0:01:29]} Nf6 {[%clk 0:01:06]} 34. Rc4 {[%clk 0:01:26]} Rba8 {[%clk 0:01:07]}
35. f3 {[%clk 0:01:27]} R8a7 {[%clk 0:00:52]} 36. Kf2 {[%clk 0:01:27]} Kh7
{[%clk 0:00:49]} 37. Rd6 {[%clk 0:01:14]} e4 {[%clk 0:00:38]} 38. fxe4 {[%clk
0:01:10]} Rb7 {[%clk 0:00:37]} 39. Rb4 {[%clk 0:01:08]} Re7 {[%clk 0:00:25]} 40.
Rdd4 {[%clk 0:01:09]} fxe4 {[%clk 0:00:26]} 41. Rxa4 {[%clk 0:01:05]} e3+ {[%clk
0:00:25]} 42. Ke2 {[%clk 0:01:05]} Rae5 {[%clk 0:00:12]} 43. g4 {[%clk 0:01:04]}
h5 {[%clk 0:00:13]} 44. Rac4 {[%clk 0:00:56]} Kg6 {[%clk 0:00:09]} 45. b4 {[%clk
0:00:51]} Kg5 {[%clk 0:00:11]} 46. a4 {[%clk 0:00:45]} Kh4 {[%clk 0:00:08]} 47.
g5+ {[%clk 0:00:44]} Kxg5 {[%clk 0:00:08]} 48. a5 {[%clk 0:00:42]} Rf5 {[%clk
0:00:09]} 49. Ne4+ {[%clk 0:00:42]} Kg6 {[%clk 0:00:04]} 50. Kxe3 {[%clk
0:00:40]} Rf1 {[%clk 0:00:05]} 51. Kd2 {[%clk 0:00:35]} Rh1 {[%clk 0:00:05]} 52.
Nxf6 {[%clk 0:00:32]} gxf6 {[%clk 0:00:06]} 53. Rd3 {[%clk 0:00:33]} Ra1 {[%clk
0:00:07]} 54. Kc2 {[%clk 0:00:21]} Re2+ {[%clk 0:00:08]} 55. Kb3 {[%clk
0:00:22]} Raa2 {[%clk 0:00:06]} 56. Rf4 {[%clk 0:00:14]} Reb2+ {[%clk 0:00:07]}
57. Kc4 {[%clk 0:00:12]} Kg5 {[%clk 0:00:06]} 58. Rdf3 {[%clk 0:00:13]} 1-0

[Variant "Standard"]
[Site "Europe Echecs"]

[Event "Champions Chess Tour Finals 2024"]
[Date "2024.12.17"]
[White "Vachier-Lagrave, Maxime"]
[Black "Aronian, Levon"]
[WhiteElo "2763"]
[BlackElo "2818"]
[Round "2.1"]
[Result "1-0"]
[TimeControl "600+2"]

1. e4 {[%clk 0:10:03]} c5 {[%clk 0:10:02]} 2. Nf3 {[%clk 0:10:03]} d6 {[%clk
0:10:03]} 3. d4 {[%clk 0:10:05]} cxd4 {[%clk 0:10:04]} 4. Nxd4 {[%clk 0:10:06]}
Nf6 {[%clk 0:10:05]} 5. Nc3 {[%clk 0:10:07]} a6 {[%clk 0:10:06]} 6. h3 {[%clk
0:10:08]} g6 {[%clk 0:09:20]} 7. g4 {[%clk 0:09:56]} h6 {[%clk 0:09:12]} 8. Bg2
{[%clk 0:09:44]} Bg7 {[%clk 0:08:33]} 9. O-O {[%clk 0:09:35]} O-O {[%clk
0:08:09]} 10. Be3 {[%clk 0:09:30]} Nc6 {[%clk 0:08:03]} 11. Qd2 {[%clk 0:08:32]}
h5 {[%clk 0:07:56]} 12. g5 {[%clk 0:08:28]} Nd7 {[%clk 0:07:57]} 13. f4 {[%clk
0:08:02]} Nxd4 {[%clk 0:06:47]} 14. Bxd4 {[%clk 0:08:03]} Bxd4+ {[%clk 0:06:48]}
15. Qxd4 {[%clk 0:08:04]} b5 {[%clk 0:06:39]} 16. e5 {[%clk 0:07:46]} dxe5
{[%clk 0:06:39]} 17. fxe5 {[%clk 0:07:47]} Rb8 {[%clk 0:06:40]} 18. Rad1 {[%clk
0:05:45]} Qc7 {[%clk 0:06:28]} 19. Nd5 {[%clk 0:05:34]} Qxe5 {[%clk 0:06:29]}
20. Qxe5 {[%clk 0:05:31]} Nxe5 {[%clk 0:06:29]} 21. Nxe7+ {[%clk 0:05:30]} Kg7
{[%clk 0:06:29]} 22. Rfe1 {[%clk 0:05:11]} Nc4 {[%clk 0:06:30]} 23. b3 {[%clk
0:05:12]} Na3 {[%clk 0:06:24]} 24. c3 {[%clk 0:05:13]} Be6 {[%clk 0:05:35]} 25.
Nc6 {[%clk 0:04:47]} Rb6 {[%clk 0:04:12]} 26. Nd4 {[%clk 0:04:46]} Rc8 {[%clk
0:02:55]} 27. Nxe6+ {[%clk 0:03:44]} Rxe6 {[%clk 0:02:56]} 28. Rxe6 {[%clk
0:03:45]} fxe6 {[%clk 0:02:58]} 29. Rd7+ {[%clk 0:03:45]} Kf8 {[%clk 0:02:59]}
30. Rd6 {[%clk 0:03:47]} Ke7 {[%clk 0:02:22]} 31. Rxa6 {[%clk 0:03:47]} Nb1
{[%clk 0:02:23]} 32. Be4 {[%clk 0:03:41]} Nxc3 {[%clk 0:02:24]} 33. Bxg6 {[%clk
0:03:40]} Ne2+ {[%clk 0:01:55]} 34. Kh2 {[%clk 0:03:41]} h4 {[%clk 0:01:17]} 35.
Be4 {[%clk 0:02:42]} Ng3 {[%clk 0:01:00]} 36. Bd3 {[%clk 0:02:21]} Rc3 {[%clk
0:00:15]} 37. Bxb5 {[%clk 0:02:15]} Rc2+ {[%clk 0:00:10]} 38. Kg1 {[%clk
0:02:16]} Rc5 {[%clk 0:00:12]} 39. Bc4 {[%clk 0:02:14]} Rxg5 {[%clk 0:00:10]}
40. Rxe6+ {[%clk 0:02:14]} Kd7 {[%clk 0:00:12]} 41. Kf2 {[%clk 0:01:48]} Nh1+
{[%clk 0:00:13]} 42. Kf1 {[%clk 0:01:41]} Ng3+ {[%clk 0:00:13]} 43. Ke1 {[%clk
0:01:42]} Rf5 {[%clk 0:00:05]} 44. Rh6 {[%clk 0:01:40]} Rf4 {[%clk 0:00:06]} 45.
a4 {[%clk 0:01:35]} Ne4 {[%clk 0:00:04]} 46. a5 {[%clk 0:01:28]} Nd6 {[%clk
0:00:06]} 47. Be2 {[%clk 0:01:18]} Rb4 {[%clk 0:00:05]} 48. a6 {[%clk 0:01:19]}
Rxb3 {[%clk 0:00:06]} 49. a7 {[%clk 0:01:07]} Ra3 {[%clk 0:00:05]} 50. Rh8
{[%clk 0:01:07]} Ra1+ {[%clk 0:00:04]} 51. Kf2 {[%clk 0:01:07]} 1-0

[Variant "Standard"]
[Site "Europe Echecs"]

[Event "Champions Chess Tour Finals 2024"]
[Date "2024.12.17"]
[White "Firouzja, Alireza"]
[Black "So, Wesley"]
[WhiteElo "2756"]
[BlackElo "2826"]
[Round "2.1"]
[Result "0-1"]
[TimeControl "600+2"]

1. Nf3 {[%clk 0:10:02]} d5 {[%clk 0:10:02]} 2. c4 {[%clk 0:10:03]} e6 {[%clk
0:09:56]} 3. g3 {[%clk 0:10:03]} Nf6 {[%clk 0:09:49]} 4. Bg2 {[%clk 0:10:04]} d4
{[%clk 0:09:47]} 5. O-O {[%clk 0:09:48]} Nc6 {[%clk 0:09:25]} 6. e3 {[%clk
0:09:42]} e5 {[%clk 0:08:04]} 7. d3 {[%clk 0:08:19]} Bg4 {[%clk 0:08:03]} 8. h3
{[%clk 0:07:42]} Bxf3 {[%clk 0:08:03]} 9. Bxf3 {[%clk 0:07:42]} dxe3 {[%clk
0:08:01]} 10. Bxe3 {[%clk 0:07:41]} Qd7 {[%clk 0:07:59]} 11. Nc3 {[%clk
0:07:09]} Be7 {[%clk 0:05:11]} 12. Qa4 {[%clk 0:06:09]} O-O {[%clk 0:04:59]} 13.
Kg2 {[%clk 0:05:30]} Rfd8 {[%clk 0:04:32]} 14. Rad1 {[%clk 0:04:36]} Nd4 {[%clk
0:04:22]} 15. Qxd7 {[%clk 0:04:28]} Rxd7 {[%clk 0:04:14]} 16. Bxb7 {[%clk
0:03:24]} Rb8 {[%clk 0:04:15]} 17. Be4 {[%clk 0:03:23]} Rxb2 {[%clk 0:04:08]}
18. Rb1 {[%clk 0:03:13]} Nxe4 {[%clk 0:03:50]} 19. dxe4 {[%clk 0:02:27]} Rc2
{[%clk 0:03:27]} 20. Nd5 {[%clk 0:02:13]} f6 {[%clk 0:03:03]} 21. Rb7 {[%clk
0:01:07]} Rxa2 {[%clk 0:02:43]} 22. Rfb1 {[%clk 0:01:07]} Ne6 {[%clk 0:02:19]}
23. Nxe7+ {[%clk 0:00:25]} Rxe7 {[%clk 0:02:21]} 24. Rxa7 {[%clk 0:00:22]} Rxa7
{[%clk 0:02:21]} 25. Bxa7 {[%clk 0:00:23]} c5 {[%clk 0:02:10]} 26. Bb8 {[%clk
0:00:10]} Rd7 {[%clk 0:02:02]} 27. Rb6 {[%clk 0:00:12]} Ng5 {[%clk 0:02:01]} 28.
Rc6 {[%clk 0:00:04]} Nxe4 {[%clk 0:01:58]} 29. Kf3 {[%clk 0:00:05]} Rd4 {[%clk
0:01:51]} 30. h4 {[%clk 0:00:04]} h5 {[%clk 0:01:44]} 31. Ke3 {[%clk 0:00:04]}
Rxc4 {[%clk 0:01:44]} 32. f3 {[%clk 0:00:04]} Nxg3 {[%clk 0:01:43]} 0-1

[Variant "Standard"]
[Site "Europe Echecs"]

[Event "Champions Chess Tour Finals 2024"]
[Date "2024.12.17"]
[White "Carlsen, Magnus"]
[Black "Nepomniachtchi, Ian"]
[WhiteElo "2838"]
[BlackElo "2758"]
[Round "2.1"]
[Result "1-0"]
[TimeControl "600+2"]

1. e4 {[%clk 0:10:01]} e5 {[%clk 0:10:03]} 2. Nf3 {[%clk 0:10:01]} Nf6 {[%clk
0:10:04]} 3. Nxe5 {[%clk 0:10:00]} d6 {[%clk 0:10:04]} 4. Nf3 {[%clk 0:10:01]}
Nxe4 {[%clk 0:10:05]} 5. Nc3 {[%clk 0:09:58]} Nxc3 {[%clk 0:10:05]} 6. dxc3
{[%clk 0:09:58]} Be7 {[%clk 0:10:05]} 7. Bf4 {[%clk 0:09:53]} Nd7 {[%clk
0:09:57]} 8. Qd2 {[%clk 0:09:49]} O-O {[%clk 0:09:54]} 9. O-O-O {[%clk 0:09:48]}
Nc5 {[%clk 0:09:51]} 10. h4 {[%clk 0:09:27]} Re8 {[%clk 0:09:43]} 11. Bc4 {[%clk
0:09:14]} Be6 {[%clk 0:09:40]} 12. Bxe6 {[%clk 0:09:06]} Nxe6 {[%clk 0:09:41]}
13. Be3 {[%clk 0:09:03]} c6 {[%clk 0:09:37]} 14. c4 {[%clk 0:08:40]} Bf8 {[%clk
0:09:10]} 15. h5 {[%clk 0:08:25]} a6 {[%clk 0:08:55]} 16. h6 {[%clk 0:08:20]} g6
{[%clk 0:08:56]} 17. Qc3 {[%clk 0:07:43]} Qe7 {[%clk 0:08:39]} 18. Rhe1 {[%clk
0:06:36]} f5 {[%clk 0:08:34]} 19. Kb1 {[%clk 0:06:20]} Qf7 {[%clk 0:08:21]} 20.
Bc1 {[%clk 0:06:20]} f4 {[%clk 0:07:52]} 21. Rh1 {[%clk 0:06:09]} Be7 {[%clk
0:06:54]} 22. Rhe1 {[%clk 0:06:00]} Bf8 {[%clk 0:06:39]} 23. g4 {[%clk 0:03:54]}
Bxh6 {[%clk 0:05:36]} 24. Rxd6 {[%clk 0:03:54]} Bg7 {[%clk 0:05:14]} 25. Qa5
{[%clk 0:03:44]} Nf8 {[%clk 0:04:48]} 26. b3 {[%clk 0:03:17]} Rxe1 {[%clk
0:04:41]} 27. Qxe1 {[%clk 0:03:17]} Re8 {[%clk 0:04:43]} 28. Qd2 {[%clk
0:03:17]} Qe7 {[%clk 0:04:02]} 29. Bb2 {[%clk 0:02:26]} Qe2 {[%clk 0:04:04]} 30.
Qxf4 {[%clk 0:02:22]} Qf1+ {[%clk 0:02:43]} 31. Qc1 {[%clk 0:02:21]} Qxf2 {[%clk
0:02:40]} 32. Bxg7 {[%clk 0:02:21]} Kxg7 {[%clk 0:02:39]} 33. Qf4 {[%clk
0:02:12]} Re6 {[%clk 0:02:09]} 34. Rd8 {[%clk 0:01:46]} Qc5 {[%clk 0:01:24]} 35.
Rb8 {[%clk 0:01:24]} Qe7 {[%clk 0:01:14]} 36. g5 {[%clk 0:01:19]} c5 {[%clk
0:00:57]} 37. a4 {[%clk 0:01:06]} a5 {[%clk 0:00:56]} 38. Qd2 {[%clk 0:00:52]}
b6 {[%clk 0:00:54]} 39. Qc3+ {[%clk 0:00:45]} Kg8 {[%clk 0:00:55]} 40. Qd2
{[%clk 0:00:23]} Qc7 {[%clk 0:00:53]} 41. Rd8 {[%clk 0:00:21]} Qf7 {[%clk
0:00:42]} 42. Qd5 {[%clk 0:00:20]} Kg7 {[%clk 0:00:31]} 43. Rb8 {[%clk 0:00:12]}
Nd7 {[%clk 0:00:25]} 44. Rb7 {[%clk 0:00:11]} Re7 {[%clk 0:00:26]} 45. Qd6
{[%clk 0:00:09]} Kf8 {[%clk 0:00:05]} 46. Rxd7 {[%clk 0:00:05]} 1-0

[Variant "Standard"]
[Site "Europe Echecs"]

[Event "Champions Chess Tour Finals 2024"]
[Date "2024.12.17"]
[White "Lazavik, Denis"]
[Black "Keymer, Vincent"]
[WhiteElo "2553"]
[BlackElo "2649"]
[Round "2.1"]
[Result "1/2-1/2"]
[TimeControl "600+2"]

1. c4 {[%clk 0:10:02]} e6 {[%clk 0:09:59]} 2. Nc3 {[%clk 0:10:02]} Bb4 {[%clk
0:09:58]} 3. e4 {[%clk 0:10:02]} Ne7 {[%clk 0:09:56]} 4. Nf3 {[%clk 0:09:55]}
O-O {[%clk 0:09:49]} 5. d4 {[%clk 0:09:54]} d5 {[%clk 0:09:46]} 6. Bd3 {[%clk
0:09:54]} dxc4 {[%clk 0:08:45]} 7. Bxc4 {[%clk 0:09:54]} c5 {[%clk 0:08:47]} 8.
a3 {[%clk 0:09:23]} cxd4 {[%clk 0:07:50]} 9. axb4 {[%clk 0:09:23]} dxc3 {[%clk
0:07:50]} 10. Qxd8 {[%clk 0:08:49]} Rxd8 {[%clk 0:07:51]} 11. bxc3 {[%clk
0:08:49]} b6 {[%clk 0:07:36]} 12. Bg5 {[%clk 0:08:45]} Kf8 {[%clk 0:07:22]} 13.
Ke2 {[%clk 0:07:59]} Bb7 {[%clk 0:07:16]} 14. Nd2 {[%clk 0:07:01]} Nbc6 {[%clk
0:06:54]} 15. Ba6 {[%clk 0:06:48]} Bxa6+ {[%clk 0:05:15]} 16. Rxa6 {[%clk
0:06:49]} Rac8 {[%clk 0:05:17]} 17. b5 {[%clk 0:06:01]} f6 {[%clk 0:04:28]} 18.
Be3 {[%clk 0:05:22]} Ne5 {[%clk 0:04:12]} 19. Rxa7 {[%clk 0:05:09]} Rxc3 {[%clk
0:03:52]} 20. Bxb6 {[%clk 0:03:38]} Rb8 {[%clk 0:03:30]} 21. Ba5 {[%clk
0:01:44]} Rc2 {[%clk 0:03:28]} 22. Rc7 {[%clk 0:00:15]} Rxc7 {[%clk 0:03:16]}
23. Bxc7 {[%clk 0:00:16]} Rxb5 {[%clk 0:03:17]} 24. Bxe5 {[%clk 0:00:17]} Rxe5
{[%clk 0:03:14]} 25. Rc1 {[%clk 0:00:17]} Rb5 {[%clk 0:03:08]} 26. Rc2 {[%clk
0:00:16]} Rb7 {[%clk 0:02:55]} 27. h4 {[%clk 0:00:16]} Ke8 {[%clk 0:02:29]} 28.
g3 {[%clk 0:00:16]} Kd7 {[%clk 0:02:21]} 29. Nf3 {[%clk 0:00:17]} Nc6 {[%clk
0:02:17]} 30. Rd2+ {[%clk 0:00:18]} Ke7 {[%clk 0:02:16]} 31. Rc2 {[%clk
0:00:18]} Rb6 {[%clk 0:02:14]} 32. Rc3 {[%clk 0:00:08]} Ra6 {[%clk 0:02:06]} 33.
Ke3 {[%clk 0:00:10]} Kd7 {[%clk 0:02:04]} 34. Nd4 {[%clk 0:00:10]} Nxd4 {[%clk
0:01:58]} 35. Kxd4 {[%clk 0:00:11]} Ra4+ {[%clk 0:01:57]} 36. Ke3 {[%clk
0:00:12]} Ra7 {[%clk 0:01:57]} 37. Rd3+ {[%clk 0:00:12]} Ke7 {[%clk 0:01:58]}
38. Rc3 {[%clk 0:00:13]} Kd7 {[%clk 0:02:00]} 39. Rd3+ {[%clk 0:00:14]} Ke7
{[%clk 0:02:01]} 1/2-1/2

[Variant "Standard"]
[Site "Europe Echecs"]